bitfinex-derivatives/quotes_BTCF0:USTF0_20250327
["timestamp","ask_amount","ask_price","bid_price","bid_amount"]
[1743118213246,0.73158827,87327.0,87326.0,0.003]
[1743118213450,1.09238827,87327.0,87326.0,0.003]
[1743118213751,1.09238827,87327.0,87326.0,0.035]
[1743118214652,1.26372614,87327.0,87326.0,0.035]
[1743118218160,1.09238827,87327.0,87326.0,0.035]
[1743118221255,0.73158827,87327.0,87326.0,0.035]
[1743118221558,1.09238827,87327.0,87326.0,0.035]
[1743118222958,1.09236884,87327.0,87326.0,0.035]
[1743118224956,1.09236751,87327.0,87326.0,0.035]
[1743118227158,0.73156751,87327.0,87326.0,0.035]
[1743118227568,1.09236751,87327.0,87326.0,0.035]
[1743118229266,1.09236751,87327.0,87326.0,0.0667]
[1743118231371,1.45316751,87327.0,87326.0,0.0667]
[1743118231776,0.1145546,87319.0,87318.0,0.0002518]
[1743118232072,0.82609801,87319.0,87318.0,0.0002518]
[1743118232264,0.91959801,87319.0,87318.0,0.0001718]
[1743118232459,1.03411078,87319.0,87318.0,0.0001718]
[1743118232968,1.03406355,87319.0,87318.0,0.0001718]
[1743118233177,1.03406355,87319.0,87318.0,0.0041718]
[1743118233671,1.03406355,87319.0,87318.0,0.0071718]
[1743118234767,1.39486355,87319.0,87318.0,0.0071718]
[1743118235373,1.39485129,87319.0,87318.0,0.0071718]
[1743118235669,0.67325129,87319.0,87318.0,0.0071718]
[1743118236071,1.81255129,87319.0,87318.0,0.0071718]
[1743118236975,1.81256251,87319.0,87318.0,0.0071718]
[1743118239078,1.812556,87319.0,87318.0,0.0071718]
[1743118239870,1.090956,87319.0,87318.0,0.0071718]
[1743118240070,1.812556,87319.0,87318.0,0.0071718]
[1743118244169,1.090956,87319.0,87318.0,0.0071718]
[1743118244474,1.812556,87319.0,87318.0,0.0071718]
[1743118245081,1.81253386,87319.0,87318.0,0.0071718]
[1743118245472,1.81253121,87319.0,87318.0,0.0071718]
[1743118247175,1.81253217,87319.0,87318.0,0.0071718]
[1743118249182,1.81253599,87319.0,87318.0,0.0071718]
[1743118250872,1.81253599,87319.0,87318.0,0.0371718]
[1743118251071,1.80118737,87319.0,87318.0,0.0371718]
[1743118251386,1.81252774,87319.0,87318.0,0.0371718]
[1743118251886,1.98371987,87319.0,87318.0,0.0371718]
[1743118252287,1.98365049,87319.0,87318.0,0.0371718]
[1743118252477,1.26205049,87319.0,87318.0,0.0371718]
[1743118252672,1.98365049,87319.0,87318.0,0.0371718]
[1743118253777,1.26205049,87319.0,87318.0,0.0371718]
[1743118253978,1.98365049,87319.0,87318.0,0.0371718]
[1743118255884,1.81245836,87319.0,87318.0,0.0371718]
[1743118260795,1.09085836,87319.0,87318.0,0.0371718]
[1743118261093,1.81247577,87319.0,87318.0,0.0371718]
[1743118262296,2.018049,87319.0,87318.0,0.0371718]
[1743118262491,1.2964512,87319.0,87318.0,0.0371718]
[1743118262994,2.0180512,87319.0,87318.0,0.0371718]
[1743118264582,2.01804018,87319.0,87318.0,0.0371718]
[1743118266591,2.01804402,87319.0,87318.0,0.0371718]
[1743118269790,1.29644402,87319.0,87318.0,0.0371718]
[1743118269987,2.01804402,87319.0,87318.0,0.0371718]
[1743118270296,1.81247079,87319.0,87318.0,0.0371718]
[1743118270499,1.09087916,87319.0,87318.0,0.0371718]
[1743118270699,1.81247916,87319.0,87318.0,0.0371718]
[1743118271590,1.70315916,87319.0,87318.0,0.0371718]
[1743118271792,1.81243916,87319.0,87318.0,0.0371718]
[1743118272493,1.09083916,87319.0,87318.0,0.0371718]
[1743118272696,1.81243916,87319.0,87318.0,0.0371718]
[1743118273800,2.01801239,87319.0,87318.0,0.0371718]
[1743118274697,2.01801057,87319.0,87318.0,0.0371718]
[1743118274898,1.29641057,87319.0,87318.0,0.0371718]
[1743118275200,1.87803057,87319.0,87318.0,0.0371718]
[1743118275501,1.7007178,87319.0,87318.0,0.16699055]
[1743118275701,1.68942783,87319.0,87318.0,0.16699055]
[1743118276204,1.68942783,87319.0,87318.0,0.20003055]
[1743118276500,1.68942783,87319.0,87318.0,0.21491631]
[1743118277198,1.27172783,87319.0,87318.0,0.21491631]
[1743118277501,1.0661546,87319.0,87318.0,0.21491631]
[1743118279601,1.0661546,87319.0,87318.0,0.226285]
[1743118280001,1.0661546,87319.0,87318.0,0.21491631]
[1743118282599,1.0661546,87319.0,87318.0,0.21493077]
[1743118282799,0.9516,87319.0,87318.0,0.22619268]
[1743118284608,1.0661546,87319.0,87318.0,0.21493077]
[1743118286207,1.1276546,87319.0,87318.0,0.19796286]
[1743118287203,1.1276546,87319.0,87318.0,0.19960286]
[1743118292315,0.7668546,87319.0,87318.0,0.19960286]
[1743118293616,0.7668546,87319.0,87318.0,0.13820286]
[1743118293816,0.7668546,87319.0,87318.0,0.13656286]
[1743118294014,0.7668546,87319.0,87318.0,0.1217277]
[1743118294209,0.7668546,87319.0,87318.0,0.1233677]
[1743118294408,0.7668546,87319.0,87318.0,0.1549677]
[1743118294812,0.7668546,87319.0,87318.0,0.1533277]
[1743118295421,0.7668546,87319.0,87318.0,0.1549677]
[1743118295810,0.7668546,87319.0,87318.0,0.2167677]
[1743118296009,0.8761346,87319.0,87318.0,0.2167677]
[1743118300720,0.8761346,87319.0,87318.0,0.1855677]
[1743118300915,0.8761346,87319.0,87318.0,0.1839277]
[1743118301225,0.8761346,87319.0,87318.0,0.1856477]
[1743118302733,0.8761346,87319.0,87318.0,0.1550477]
[1743118302927,0.8761346,87319.0,87318.0,0.1533277]
[1743118303135,0.8761346,87319.0,87318.0,0.1549677]
[1743118303938,0.88746547,87319.0,87318.0,0.17001279]
[1743118304138,0.52666547,87319.0,87318.0,0.17001279]
[1743118304334,0.88746748,87319.0,87318.0,0.17001279]
[1743118304939,0.88746748,87319.0,87318.0,0.16837279]
[1743118306534,0.52666748,87319.0,87318.0,0.16837279]
[1743118306738,0.88746748,87319.0,87318.0,0.17009279]
[1743118306939,0.88746748,87319.0,87318.0,0.16837279]
[1743118307950,0.77818748,87319.0,87318.0,0.16837279]
[1743118308151,0.88746748,87319.0,87318.0,0.17005279]
[1743118308449,0.88746748,87319.0,87318.0,0.16837279]
[1743118308647,0.88746748,87319.0,87318.0,0.17001279]
[1743118311147,0.17156199,87323.0,87322.0,0.1145507]
[1743118311347,0.28156199,87323.0,87322.0,0.13131579]
[1743118311645,0.28611139,87323.0,87322.0,0.22451579]
[1743118312342,0.28611139,87323.0,87322.0,0.22951579]
[1743118312551,0.1145494,87323.0,87322.0,0.22951579]
[1743118315540,0.1145494,87323.0,87322.0,0.19891579]
[1743118315751,0.4573494,87323.0,87322.0,0.05186509]
[1743118315943,0.4573494,87323.0,87322.0,0.05014509]
[1743118316457,0.4874494,87323.0,87322.0,0.08446776]
[1743118317362,0.4874494,87323.0,87322.0,0.19901846]
[1743118318452,0.4874494,87323.0,87322.0,0.23141846]
[1743118325647,0.4874494,87323.0,87322.0,0.2163907]
[1743118325854,0.4874494,87323.0,87322.0,0.23139142]
[1743118326055,0.4874494,87323.0,87322.0,0.2163907]
[1743118326252,0.4874494,87323.0,87322.0,0.23139176]
[1743118326751,0.4874494,87323.0,87322.0,0.2163907]
[1743118327153,0.4874494,87323.0,87322.0,0.23139143]
[1743118327463,0.4563494,87323.0,87322.0,0.23139143]
[1743118328756,0.4563494,87323.0,87322.0,0.2163907]
[1743118328956,0.4563494,87323.0,87322.0,0.1839907]
[1743118329258,0.4563494,87323.0,87322.0,0.00664]
[1743118329457,0.4563494,87323.0,87322.0,0.1195507]
[1743118329764,0.4563494,87323.0,87322.0,0.1654018]
[1743118329961,0.4563494,87323.0,87322.0,0.1962018]
[1743118330556,0.4563494,87323.0,87322.0,0.1979218]
[1743118339668,0.4563494,87323.0,87322.0,0.19794133]
[1743118341672,0.4563494,87323.0,87322.0,0.19794594]
[1743118342265,0.20796447,87323.0,87322.0,0.19794594]
[1743118342461,0.06,87337.0,87322.0,0.37473524]
[1743118342663,0.20557323,87336.0,87334.0,0.114535]
[1743118342866,0.20557323,87336.0,87334.0,1.372275]
[1743118342867,0.1601718,87335.0,87334.0,1.372275]
[1743118343091,0.0001718,87335.0,87334.0,0.722275]
[1743118343973,0.0001718,87335.0,87334.0,0.74858884]
[1743118344273,0.0011718,87335.0,87334.0,0.74858884]
[1743118345469,0.0011718,87335.0,87334.0,0.59858884]
[1743118346277,0.0011718,87335.0,87334.0,0.93039951]
[1743118347668,0.0011718,87335.0,87334.0,0.93035495]
[1743118348072,0.0011718,87335.0,87334.0,0.94195018]
[1743118349874,0.0011718,87335.0,87334.0,0.92711644]
[1743118350585,0.0011718,87335.0,87334.0,0.58387023]
[1743118350974,0.0011718,87335.0,87334.0,0.572275]
[1743118351777,0.0626,87339.0,87338.0,0.1145297]
[1743118352073,0.0626,87339.0,87338.0,0.1161697]
[1743118352274,0.0626,87339.0,87338.0,0.1789697]
[1743118352675,0.1771284,87339.0,87338.0,0.1789697]
[1743118352982,0.0636,87339.0,87338.0,0.1789697]
[1743118354281,0.0646,87339.0,87338.0,0.1789697]
[1743118354589,0.1791284,87339.0,87338.0,0.1789697]
[1743118359275,0.0646,87339.0,87338.0,0.1789697]
[1743118359679,0.1791284,87339.0,87338.0,0.1789697]
[1743118359992,0.0646,87339.0,87338.0,0.1789697]
[1743118360178,0.1791284,87339.0,87338.0,0.1789697]
[1743118360378,0.0646,87339.0,87338.0,0.1789697]
[1743118360579,0.1791284,87339.0,87338.0,0.1789697]
[1743118360878,0.0646,87339.0,87338.0,0.1789697]
[1743118361788,0.002,87339.0,87338.0,0.1789697]
[1743118364787,0.002,87339.0,87338.0,0.5397697]
[1743118365090,0.00011144,87347.0,87346.0,0.1145192]
[1743118365285,0.00011144,87347.0,87346.0,0.5718392]
[1743118365488,0.00011144,87347.0,87346.0,1.3718392]
[1743118367287,0.00111144,87347.0,87346.0,1.3718392]
[1743118369179,0.00111144,87347.0,87346.0,0.5718392]
[1743118371892,0.00111144,87347.0,87346.0,0.2110392]
[1743118372084,0.00111144,87347.0,87346.0,0.5718392]
[1743118373095,0.11562934,87347.0,87346.0,0.00172]
[1743118373288,0.35562934,87347.0,87346.0,0.1162392]
[1743118373593,0.21282934,87347.0,87346.0,0.1162392]
[1743118374990,0.43282934,87347.0,87346.0,0.00172]
[1743118375192,0.44424614,87347.0,87346.0,0.00172]
[1743118375587,0.44424614,87347.0,87346.0,0.1162392]
[1743118382602,0.43282934,87347.0,87346.0,0.1162392]
[1743118384695,0.54198934,87347.0,87346.0,0.1162392]
[1743118389610,0.54098934,87347.0,87346.0,0.1172392]
[1743118397011,0.90178934,87347.0,87346.0,0.1830392]
[1743118397919,0.54098934,87347.0,87346.0,0.1830392]
[1743118398120,0.90178934,87347.0,87346.0,0.1830392]
[1743118399720,0.54098934,87347.0,87346.0,0.1830392]
[1743118400109,0.90178934,87347.0,87346.0,0.1830392]
[1743118400718,0.64521144,87347.0,87346.0,0.1830392]
[1743118401020,0.58091144,87347.0,87346.0,0.1830392]
[1743118401917,0.00011144,87347.0,87346.0,0.5438392]
[1743118405723,0.00011144,87347.0,87346.0,0.1830392]
[1743118406026,0.00011144,87347.0,87346.0,0.5438392]
[1743118408517,4e-08,87347.0,87346.0,0.5438392]
[1743118409413,4e-08,87347.0,87346.0,0.81817397]
[1743118410431,4e-08,87356.0,87355.0,0.1145074]
[1743118410639,4e-08,87356.0,87355.0,0.4769474]
[1743118410925,0.13722634,87365.0,87355.0,0.4769474]
[1743118410926,0.13722634,87365.0,87364.0,0.1144956]
[1743118411124,0.13722634,87365.0,87364.0,0.4769756]
[1743118411325,0.13722634,87365.0,87364.0,0.5723756]
[1743118411521,0.25172064,87365.0,87364.0,0.5723756]
[1743118411828,0.13722634,87365.0,87364.0,0.5723756]
[1743118412219,0.20152634,87365.0,87364.0,0.5723756]
[1743118414219,0.0643,87365.0,87364.0,0.5723756]
[1743118415830,0.1787943,87365.0,87364.0,0.5723756]
[1743118416028,0.1787943,87365.0,87364.0,0.1161756]
[1743118416621,0.1787943,87365.0,87364.0,0.1466756]
[1743118416932,0.1787943,87365.0,87364.0,0.1791756]
[1743118417629,0.0643,87365.0,87364.0,0.1791756]
[1743118418231,0.1787943,87365.0,87364.0,0.1791756]
[1743118418632,0.0643,87365.0,87364.0,0.1791756]
[1743118419732,0.1787943,87365.0,87364.0,0.1791756]
[1743118419925,0.0643,87365.0,87364.0,0.1791756]
[1743118425926,0.1787943,87365.0,87364.0,0.1791756]
[1743118428231,0.1787943,87365.0,87364.0,0.1486756]
[1743118429024,0.1787943,87365.0,87364.0,0.1161756]
[1743118431140,0.0643,87365.0,87364.0,0.1161756]
[1743118431639,0.0643,87365.0,87364.0,0.1805756]
[1743118437736,0.01165445,87377.0,87373.0,0.0572415]
[1743118437932,0.03258,87375.0,87374.0,0.1717237]
[1743118438128,0.10258,87375.0,87374.0,0.1734037]
[1743118438643,0.2170612,87375.0,87374.0,0.1734037]
[1743118439142,0.2813612,87375.0,87374.0,0.1734037]
[1743118440842,0.2813612,87375.0,87374.0,0.00168]
[1743118441037,0.2289771,87373.0,87372.0,0.37754926]
[1743118441237,0.4889771,87373.0,87372.0,0.37926926]
[1743118442036,0.3744864,87373.0,87372.0,0.37926926]
[1743118444943,0.3744864,87373.0,87372.0,0.1734443]
[1743118449750,0.7352864,87373.0,87372.0,0.1734443]
[1743118453045,0.7982864,87373.0,87372.0,0.1734443]
[1743118453648,0.7982864,87373.0,87372.0,0.0589618]
[1743118453855,0.7982864,87373.0,87372.0,0.00172]
[1743118454251,0.7982864,87373.0,87372.0,0.1162051]
[1743118456658,0.93551274,87373.0,87372.0,0.00172]
[1743118456855,0.1144891,87369.0,87368.0,0.2618745]
[1743118457161,0.2344891,87369.0,87368.0,0.2635145]
[1743118457459,0.2975891,87369.0,87368.0,0.2635145]
[1743118459460,0.2975891,87369.0,87368.0,0.2944145]
[1743118460356,0.2975891,87369.0,87368.0,0.1799294]
[1743118461263,0.2975891,87369.0,87368.0,0.1226845]
[1743118461561,0.2975891,87369.0,87368.0,0.00164]
[1743118461761,0.1145009,87360.0,87359.0,0.00855503]
[1743118461961,0.1145035,87359.0,87358.0,0.1145031]
[1743118462263,0.1145035,87358.0,87357.0,0.34412621]
[1743118462567,0.39658487,87358.0,87357.0,0.34492621]
[1743118462758,0.46078487,87358.0,87357.0,0.34404621]
[1743118463366,0.4723452,87358.0,87357.0,0.0008]
[1743118465460,0.46110383,87358.0,87357.0,0.0018]
[1743118465967,0.82190383,87358.0,87357.0,0.0018]
[1743118467053,0.82190383,87358.0,87357.0,0.001]
[1743118467968,0.82190383,87358.0,87357.0,0.1155048]
[1743118471759,0.82190383,87358.0,87357.0,0.001]
[1743118472962,0.82190383,87358.0,87357.0,0.0342]
[1743118474971,0.82190383,87358.0,87357.0,0.0668]
[1743118478482,0.82190383,87358.0,87357.0,0.0658]
[1743118480878,0.82190383,87358.0,87357.0,0.1803048]
[1743118481780,0.46110383,87358.0,87357.0,0.1803048]
[1743118482080,0.82190383,87358.0,87357.0,0.1811848]
[1743118482269,0.82190383,87358.0,87357.0,0.1803048]
[1743118483384,0.82190383,87358.0,87357.0,0.0658]
[1743118484381,0.93102383,87358.0,87357.0,0.1803048]
[1743118485478,0.57022383,87358.0,87357.0,0.1803048]
[1743118485683,0.93102383,87358.0,87357.0,0.1811048]
[1743118485876,0.93102383,87358.0,87357.0,0.1803048]
[1743118486482,0.93102383,87358.0,87357.0,0.0658]
[1743118487080,0.1145153,87349.0,87347.0,8e-05]
[1743118487285,0.8644353,87349.0,87348.0,0.0311]
[1743118487484,0.8652353,87349.0,87348.0,0.0303]
[1743118487780,0.1717881,87342.0,87341.0,0.1145245]
[1743118487973,0.2725881,87342.0,87341.0,0.1153245]
[1743118488485,0.3375881,87342.0,87341.0,0.1780245]
[1743118489085,0.3375881,87342.0,87341.0,0.2083245]
[1743118489978,0.34911561,87342.0,87341.0,0.2083245]
[1743118490779,0.34911561,87342.0,87341.0,0.2103245]
[1743118490978,0.34911561,87342.0,87341.0,0.2133245]
[1743118495591,0.34911561,87342.0,87341.0,0.1830245]
[1743118495791,0.34911561,87342.0,87341.0,0.2138245]
[1743118497482,0.34911561,87342.0,87341.0,0.0685]
[1743118497691,0.36039811,87342.0,87341.0,0.0677]
[1743118498893,0.36039811,87342.0,87341.0,0.1822258]
[1743118499093,0.36039811,87342.0,87341.0,0.1830258]
[1743118502095,0.36034979,87342.0,87341.0,0.1830258]
[1743118502890,0.36034979,87342.0,87341.0,0.0058]
[1743118503090,0.36034979,87342.0,87341.0,0.005]
[1743118503898,1.08194979,87342.0,87341.0,0.005]
[1743118505090,1.13763512,87342.0,87341.0,0.005]
[1743118506003,1.13761579,87342.0,87341.0,0.005]
[1743118508697,1.08193046,87342.0,87341.0,0.005]
[1743118511998,1.08194977,87342.0,87341.0,0.005]
[1743118514002,1.08194977,87342.0,87341.0,0.0684]
[1743118515797,0.9941881,87342.0,87341.0,0.1829258]
[1743118516002,0.8796623,87342.0,87341.0,0.2156258]
[1743118516201,0.8796623,87342.0,87341.0,0.2164258]
[1743118516399,1.10650864,87342.0,87341.0,0.2164258]
[1743118516599,1.10650864,87342.0,87341.0,0.2156258]
[1743118518101,0.38490864,87342.0,87341.0,0.2156258]
[1743118518306,0.39639395,87342.0,87341.0,0.2164258]
[1743118518511,0.46089395,87342.0,87341.0,0.2164258]
[1743118518908,0.46089395,87342.0,87341.0,0.1837258]
[1743118519406,0.23404761,87342.0,87341.0,0.1837258]
[1743118520011,0.2225623,87342.0,87341.0,0.1837258]
[1743118520403,0.23393856,87342.0,87341.0,0.1837258]
[1743118523115,0.34305856,87342.0,87341.0,0.1837258]
[1743118523706,0.70385856,87342.0,87341.0,0.1837258]
[1743118526610,0.58210713,87342.0,87341.0,0.1837258]
[1743118527010,0.57072,87342.0,87341.0,0.1837258]
[1743118527611,0.6852445,87342.0,87341.0,0.1837258]
[1743118529607,0.3244445,87342.0,87341.0,0.1837258]
[1743118533521,0.3561445,87342.0,87341.0,0.1837258]
[1743118536117,0.45892933,87342.0,87341.0,0.1837258]
[1743118537115,0.49072933,87342.0,87341.0,0.1837258]
[1743118540427,0.3879445,87342.0,87341.0,0.1837258]
[1743118545627,0.20992,87342.0,87341.0,0.1837258]
[1743118546444,0.3244445,87342.0,87341.0,0.1837258]
[1743118546744,0.20992,87342.0,87341.0,0.1837258]
[1743118546940,0.20992,87342.0,87341.0,0.1827258]
[1743118547141,0.20992,87342.0,87341.0,0.1857258]
[1743118547535,0.20992,87342.0,87341.0,0.1847258]
[1743118548135,0.20992,87342.0,87341.0,0.1817258]
[1743118548337,0.20992,87342.0,87341.0,0.1847258]
[1743118548939,0.20992,87342.0,87341.0,0.1837258]
[1743118549242,0.1008,87342.0,87341.0,0.19528873]
[1743118549942,0.1008,87342.0,87341.0,0.1837258]
[1743118553140,0.1008,87342.0,87341.0,0.1817258]
[1743118553446,0.1008,87342.0,87341.0,0.19711541]
[1743118553643,0.0008,87342.0,87341.0,0.19711541]
[1743118553844,0.0008,87342.0,87341.0,0.19311541]
[1743118554040,0.13710902,87344.0,87343.0,0.1145232]
[1743118554239,0.13790902,87344.0,87343.0,0.1476232]
[1743118554435,0.13790902,87344.0,87343.0,0.1803232]
[1743118555143,0.0008,87344.0,87343.0,0.1803232]
[1743118555845,0.0008,87344.0,87343.0,0.1833232]
[1743118556540,0.0008,87344.0,87343.0,0.1803232]
[1743118556844,0.0008,87344.0,87343.0,0.1833232]
[1743118557047,0.0008,87344.0,87343.0,0.1873232]
[1743118557743,0.0341,87344.0,87343.0,0.1873232]
[1743118558142,0.0008,87344.0,87343.0,0.1873232]
[1743118558744,0.00017138,87350.0,87346.0,0.0572592]
[1743118558941,8e-05,87355.0,87352.0,0.1145114]
[1743118559137,0.17252026,87353.0,87352.0,0.1158714]
[1743118559341,0.17252026,87353.0,87352.0,0.2117714]
[1743118559549,0.00136,87353.0,87352.0,0.2117714]
[1743118559733,0.03794,87356.0,87355.0,0.1145074]
[1743118559933,0.0393,87356.0,87355.0,0.1158674]
[1743118560137,0.00592,87356.0,87355.0,0.1795674]
[1743118560339,0.00456,87356.0,87355.0,0.1795674]
[1743118560539,0.006,87356.0,87355.0,0.1795674]
[1743118561149,0.1205061,87356.0,87355.0,0.1795674]
[1743118561346,0.2163061,87356.0,87355.0,0.1795674]
[1743118561548,0.1018,87356.0,87355.0,0.1795674]
[1743118562252,0.1018,87356.0,87355.0,0.1805674]
[1743118562554,0.0716,87356.0,87355.0,0.1805674]
[1743118563046,0.0716,87356.0,87355.0,0.1825674]
[1743118563246,0.0716,87356.0,87355.0,0.1939799]
[1743118565355,0.0716,87356.0,87355.0,0.20883867]
[1743118566449,0.0716,87356.0,87355.0,0.20883298]
[1743118566950,0.006,87356.0,87355.0,0.20883298]
[1743118567139,8e-05,87357.0,87356.0,0.1145061]
[1743118567341,0.0302,87361.0,87360.0,0.1145009]
[1743118567645,0.0322,87363.0,87362.0,0.1144982]
[1743118567850,0.0322,87363.0,87362.0,0.1158582]
[1743118567851,0.06376,87363.0,87362.0,0.1158582]
[1743118568047,0.06376,87363.0,87362.0,0.1812582]
[1743118569243,0.06376,87363.0,87362.0,0.19633981]
[1743118570253,0.00136,87363.0,87362.0,0.19633981]
[1743118570454,8e-05,87365.0,87364.0,0.1144956]
[1743118570650,0.0319,87368.0,87367.0,0.1144917]
[1743118570848,0.1463904,87368.0,87367.0,0.13093331]
[1743118571155,0.1477504,87368.0,87367.0,0.19233331]
[1743118571460,0.03326,87368.0,87367.0,0.19233331]
[1743118571654,0.0319,87368.0,87367.0,0.19233331]
[1743118572245,0.0319,87368.0,87367.0,0.1772517]
[1743118572851,0.0319,87368.0,87367.0,0.19235911]
[1743118573051,0.0319,87368.0,87367.0,0.1772517]
[1743118573258,0.0319,87368.0,87367.0,0.19268227]
[1743118573960,0.3927,87368.0,87367.0,0.13075314]
[1743118574268,0.39338,87368.0,87367.0,0.13075314]
[1743118575752,0.49338,87368.0,87367.0,0.13075314]
[1743118578065,0.49338,87368.0,87367.0,0.1158517]
[1743118578456,0.13258,87368.0,87367.0,0.1158517]
[1743118578656,0.49338,87368.0,87367.0,0.1158517]
[1743118579357,0.49338,87368.0,87367.0,0.13063685]
[1743118580849,0.13258,87368.0,87367.0,0.13063685]
[1743118581055,0.49338,87368.0,87367.0,0.13063685]
[1743118581253,0.52618,87368.0,87367.0,0.13063685]
[1743118581754,0.16538,87368.0,87367.0,0.13063685]
[1743118581969,0.52618,87368.0,87367.0,0.13063685]
[1743118583765,0.52618,87368.0,87367.0,0.21112869]
[1743118585057,0.52618,87368.0,87367.0,0.19634354]
[1743118588369,0.52618,87368.0,87367.0,0.19626426]
[1743118589461,0.16538,87368.0,87367.0,0.19626426]
[1743118590461,0.16538,87368.0,87367.0,0.1962452]
[1743118599475,0.16538,87368.0,87367.0,0.1810517]
[1743118605579,0.40071095,87368.0,87367.0,0.00136]
[1743118608679,0.0572459,87367.0,87361.0,0.27451505]
[1743118608983,0.4752982,87362.0,87361.0,0.27547505]
[1743118609185,0.73749876,87362.0,87361.0,0.27547505]
[1743118609379,0.83209876,87362.0,87361.0,0.27547505]
[1743118610270,0.83209597,87362.0,87361.0,0.27547505]
[1743118610484,0.83209597,87362.0,87361.0,0.27647505]
[1743118611191,0.47129597,87362.0,87361.0,0.27647505]
[1743118611370,0.83209597,87362.0,87361.0,0.27647505]
[1743118611685,0.83209597,87362.0,87361.0,0.00196]
[1743118611884,0.83209597,87362.0,87361.0,0.001]
[1743118612484,0.83209075,87362.0,87361.0,0.001]
[1743118613277,0.82085821,87362.0,87361.0,0.001]
[1743118613480,0.83208541,87362.0,87361.0,0.001]
[1743118618480,0.83208541,87362.0,87352.0,0.00017171]
[1743118618481,0.11451,87353.0,87352.0,0.00017171]
[1743118618683,0.81599001,87353.0,87352.0,0.00121171]
[1743118618980,0.90849001,87353.0,87352.0,0.00017171]
[1743118619480,0.90849001,87353.0,87352.0,0.00113171]
[1743118619881,0.90849001,87353.0,87352.0,0.11564311]
[1743118620083,0.90849001,87353.0,87352.0,0.11468311]
[1743118620580,0.90849001,87353.0,87352.0,0.11668311]
[1743118621383,0.90849001,87353.0,87352.0,0.11968311]
[1743118621586,0.90849001,87353.0,87352.0,0.00621171]
[1743118621786,0.91976566,87353.0,87352.0,0.00621171]
[1743118621989,0.91976566,87353.0,87352.0,0.00517171]
[1743118622193,0.1145192,87346.0,87345.0,0.0313]
[1743118622394,0.1145245,87342.0,87341.0,0.1765252]
[1743118622578,0.50508451,87342.0,87341.0,0.1774852]
[1743118622783,0.56968451,87342.0,87341.0,0.1774852]
[1743118624387,0.56968451,87342.0,87341.0,0.1824852]
[1743118624586,0.56968451,87342.0,87341.0,0.1864852]
[1743118624781,0.56968451,87342.0,87341.0,0.07196]
[1743118624986,0.56968451,87342.0,87341.0,0.071]
[1743118627390,0.56968451,87342.0,87341.0,0.1855258]
[1743118627691,0.56968451,87342.0,87341.0,0.1864858]
[1743118629291,0.56968451,87342.0,87341.0,0.071]
[1743118629689,0.93048451,87342.0,87341.0,0.071]
[1743118630085,0.93048451,87342.0,87341.0,0.009]
[1743118632005,0.93048451,87342.0,87341.0,0.0411]
[1743118632189,1.06734878,87342.0,87341.0,0.0411]
[1743118632890,1.42814878,87342.0,87341.0,0.0411]
[1743118633489,0.70654878,87342.0,87341.0,0.0411]
[1743118633693,1.42814878,87342.0,87341.0,0.04206]
[1743118633993,1.42814878,87342.0,87341.0,0.0411]
[1743118635199,0.0572646,87339.0,87335.0,0.0327]
[1743118635492,0.1145323,87336.0,87335.0,0.1472336]
[1743118635697,0.3851723,87336.0,87335.0,0.1472336]
[1743118635898,0.4475723,87336.0,87335.0,0.1472336]
[1743118636098,0.4475723,87336.0,87335.0,0.1145336]
[1743118636299,0.4475723,87336.0,87335.0,0.1205336]
[1743118636495,0.4475723,87336.0,87335.0,0.1265336]
[1743118636693,0.45933117,87336.0,87335.0,0.1265336]
[1743118637200,0.114535,87334.0,87333.0,0.05751931]
[1743118637398,0.73593501,87334.0,87333.0,0.05751931]
[1743118637599,0.80063501,87334.0,87333.0,0.05751931]
[1743118638496,0.80063501,87334.0,87333.0,0.11821931]
[1743118638701,0.80063501,87334.0,87333.0,0.11925931]
[1743118638904,0.80163501,87334.0,87333.0,0.12425931]
[1743118639201,0.44083501,87334.0,87333.0,0.12425931]
[1743118639404,0.80163501,87334.0,87333.0,0.12425931]
[1743118639592,0.80263501,87334.0,87333.0,0.12925931]
[1743118639901,0.90525755,87334.0,87333.0,0.12925931]
[1743118640103,0.90525755,87334.0,87333.0,0.12821931]
[1743118640797,0.54445755,87334.0,87333.0,0.12821931]
[1743118641006,0.90525755,87334.0,87333.0,0.12917931]
[1743118641194,0.90525755,87334.0,87333.0,0.12821931]
[1743118642896,0.80263501,87334.0,87333.0,0.12821931]
[1743118643700,0.44183501,87334.0,87333.0,0.12821931]
[1743118643894,0.80263501,87334.0,87333.0,0.12925931]
[1743118644096,0.80263501,87334.0,87333.0,0.12821931]
[1743118651609,0.80263501,87334.0,87333.0,0.12921931]
[1743118652109,0.44183501,87334.0,87333.0,0.12921931]
[1743118652313,0.80263501,87334.0,87333.0,0.12921931]
[1743118652501,0.44183501,87334.0,87333.0,0.12921931]
[1743118652702,0.80263501,87334.0,87333.0,0.12921931]
[1743118654404,0.44183501,87334.0,87333.0,0.12921931]
[1743118654705,0.80263501,87334.0,87333.0,0.12921931]
[1743118654905,0.44183501,87334.0,87333.0,0.12921931]
[1743118655111,0.80263501,87334.0,87333.0,0.12921931]
[1743118655310,0.80263501,87334.0,87333.0,0.12821931]
[1743118658206,0.81397401,87334.0,87333.0,0.12821931]
[1743118661616,0.81398442,87334.0,87333.0,0.12821931]
[1743118661816,0.50887103,87334.0,87333.0,0.12821931]
[1743118662116,0.86967103,87334.0,87333.0,0.12917931]
[1743118662318,0.86967103,87334.0,87333.0,0.12821931]
[1743118664116,0.50887103,87334.0,87333.0,0.12821931]
[1743118664313,0.50887103,87334.0,87333.0,0.12925931]
[1743118664619,0.86967103,87334.0,87333.0,0.12925931]
[1743118664819,0.86967103,87334.0,87333.0,0.12821931]
[1743118665020,0.97891103,87334.0,87333.0,0.12821931]
[1743118665217,0.61811103,87334.0,87333.0,0.12821931]
[1743118665415,0.61811103,87334.0,87333.0,0.12925931]
[1743118665618,0.9789109,87334.0,87333.0,0.12925931]
[1743118665816,0.9789109,87334.0,87333.0,0.12821931]
[1743118666717,0.8696709,87334.0,87333.0,0.12821931]
[1743118666923,0.9790709,87334.0,87333.0,0.12821931]
[1743118667419,0.6182709,87334.0,87333.0,0.12821931]
[1743118667719,0.9790709,87334.0,87333.0,0.12921931]
[1743118667927,0.6182709,87334.0,87333.0,0.12821931]
[1743118668121,0.9790709,87334.0,87333.0,0.12917931]
[1743118668320,0.9790709,87334.0,87333.0,0.12821931]
[1743118669729,0.97923628,87334.0,87333.0,0.12821931]
[1743118669920,0.61843628,87334.0,87333.0,0.12821931]
[1743118670120,0.61843628,87334.0,87333.0,0.12917931]
[1743118670322,0.97923628,87334.0,87333.0,0.12917931]
[1743118670521,0.97923628,87334.0,87333.0,0.12821931]
[1743118671031,0.97923628,87334.0,87333.0,0.09771931]
[1743118671228,0.61843628,87334.0,87333.0,0.09771931]
[1743118671429,0.97923628,87334.0,87333.0,0.09867931]
[1743118671620,0.97923628,87334.0,87333.0,0.09771931]